bitfinex-derivatives/quotes_BTCF0:USTF0_20250309
["timestamp","ask_amount","ask_price","bid_price","bid_amount"]
[1741549673429,0.23465453,82746.0,82740.0,0.1208822]
[1741549673614,0.12106202,82741.0,82740.0,0.1208822]
[1741549674215,0.1208822,82740.0,82739.0,0.0608]
[1741549674628,0.2397822,82740.0,82739.0,0.0608]
[1741549674830,0.2397822,82740.0,82739.0,0.1816837]
[1741549675624,0.2397822,82740.0,82739.0,0.0608]
[1741549676621,0.2397822,82740.0,82739.0,0.1816837]
[1741549676820,0.6005822,82740.0,82739.0,0.1816837]
[1741549677917,0.6005822,82740.0,82739.0,0.0608]
[1741549679228,0.6005822,82740.0,82739.0,0.1816837]
[1741549680026,0.4797,82740.0,82705.0,0.36982052]
[1741549680330,0.1208939,82732.0,82731.0,0.1205]
[1741549680526,0.2222939,82732.0,82731.0,0.1205]
[1741549680728,0.3414939,82732.0,82731.0,0.1205]
[1741549681432,0.3414939,82732.0,82731.0,0.2413954]
[1741549682219,0.1014,82732.0,82731.0,0.2413954]
[1741549682723,0.2222939,82732.0,82731.0,0.2413954]
[1741549682925,0.2839939,82732.0,82731.0,0.2413954]
[1741549683123,0.3449939,82732.0,82731.0,0.2413954]
[1741549684330,0.2241,82732.0,82717.0,0.4212572]
[1741549684538,0.1209144,82719.0,82718.0,0.1834142]
[1741549685630,0.1209144,82719.0,82718.0,0.2402142]
[1741549686227,0.0604551,82721.0,82720.0,0.1209115]
[1741549686635,0.0604522,82725.0,82722.0,0.3022706]
[1741549686833,0.1014,82732.0,82731.0,0.1208954]
[1741549687430,0.2222939,82732.0,82731.0,0.1208954]
[1741549688738,0.3431939,82732.0,82731.0,0.1208954]
[1741549689533,0.2223,82732.0,82730.0,0.0599]
[1741549689732,0.2223,82732.0,82728.0,0.3608]
[1741549689733,0.1208983,82729.0,82728.0,0.3608]
[1741549689944,0.1813794,82719.0,82718.0,0.0604556]
[1741549692950,0.0604587,82719.0,82718.0,0.0604556]
[1741549694947,0.1211,82723.0,82718.0,0.0604556]
[1741549695144,0.1209021,82727.0,82726.0,0.0604506]
[1741549695349,0.10128,82731.0,82729.0,0.1208983]
[1741549695545,0.10128,82731.0,82730.0,0.1208969]
[1741549695749,0.2221754,82731.0,82730.0,0.1208969]
[1741549696151,0.10128,82731.0,82730.0,0.1208969]
[1741549696345,0.2221754,82731.0,82730.0,0.1208969]
[1741549696551,0.10128,82731.0,82730.0,0.1208969]
[1741549696847,0.2410895,82735.0,82734.0,0.120891]
[1741549697049,0.3423695,82735.0,82734.0,0.120891]
[1741549697451,0.3423695,82735.0,82726.0,0.238247]
[1741549697452,0.1209012,82727.0,82726.0,0.238247]
[1741549697653,0.1209012,82727.0,82726.0,0.2986974]
[1741549697851,0.1209012,82727.0,82726.0,0.11735]
[1741549698250,0.2410012,82727.0,82726.0,0.11735]
[1741549698755,0.0604455,82734.0,82726.0,0.11735]
[1741549698756,0.0604455,82734.0,82726.0,0.0569]
[1741549698961,0.1208943,82732.0,82731.0,0.1813395]
[1741549699261,0.2221726,82735.0,82734.0,0.120891]
[1741549699662,0.2828726,82735.0,82734.0,0.120891]
[1741549699851,0.3422726,82735.0,82734.0,0.120891]
[1741549700251,0.3422726,82735.0,82734.0,0.181591]
[1741549701564,0.3422726,82735.0,82734.0,0.0607]
[1741549702061,0.3422726,82735.0,82734.0,0.181591]
[1741549703352,0.00018122,82741.0,82739.0,0.1208837]
[1741549703551,2e-08,82741.0,82740.0,0.5422822]
[1741549703755,0.21296,82761.0,82740.0,0.4807]
[1741549703961,0.4784,82769.0,82756.0,0.3608]
[1741549704163,0.481642,82769.0,82768.0,0.1208413]
[1741549704365,0.4816399,82769.0,82768.0,0.1208413]
[1741549704561,0.0619,82775.0,82773.0,0.120834]
[1741549704562,0.0583,82774.0,82773.0,0.120834]
[1741549704758,0.0604136,82778.0,82774.0,0.060416]
[1741549704955,0.1812458,82777.0,82776.0,0.1208282]
[1741549705160,0.3014458,82777.0,82776.0,0.1208282]
[1741549705357,0.00181285,82780.0,82776.0,0.1208282]
[1741549705558,0.12263665,82780.0,82779.0,0.1208253]
[1741549706662,0.0604133,82779.0,82776.0,0.1208292]
[1741549706965,0.4816282,82777.0,82776.0,0.1208282]
[1741549707265,0.120837,82771.0,82770.0,0.5420555]
[1741549707466,0.120837,82771.0,82770.0,0.1812555]
[1741549708563,0.2438541,82773.0,82772.0,0.1208355]
[1741549709157,0.1812541,82773.0,82772.0,0.1208355]
[1741549709354,0.0604171,82773.0,82772.0,0.1208355]
[1741549712267,0.00181285,82780.0,82776.0,0.0604145]
[1741549712469,0.18305435,82780.0,82779.0,0.1208253]
[1741549713355,0.24385435,82780.0,82779.0,0.1208253]
[1741549714871,0.06261285,82780.0,82768.0,0.01239492]
[1741549715071,0.0604191,82772.0,82771.0,0.0604168]
[1741549715969,0.0604136,82778.0,82777.0,0.1208253]
[1741549716699,0.00181285,82780.0,82779.0,0.1208253]
[1741549716882,2e-08,82782.0,82781.0,0.1208224]
[1741549717081,0.21288,82805.0,82802.0,0.1207917]
[1741549717274,0.00064,82808.0,82799.0,0.3608]
[1741549717464,0.0603894,82811.0,82810.0,0.0603887]
[1741549717665,0.19007657,82811.0,82810.0,0.0603887]
[1741549718167,0.0624,82816.0,82815.0,0.1207728]
[1741549718474,0.00018122,82819.0,82818.0,0.1207684]
[1741549718669,0.12095042,82819.0,82818.0,0.1207684]
[1741549718973,0.1207684,82818.0,82817.0,0.1775698]
[1741549719274,0.1803684,82818.0,82817.0,0.1775698]
[1741549721865,0.0596,82818.0,82817.0,0.1775698]
[1741549722066,0.00018122,82819.0,82818.0,0.1207684]
[1741549722267,0.00018122,82819.0,82818.0,0.1808684]
[1741549723276,0.00912215,82838.0,82818.0,0.2101]
[1741549723471,0.46176,82841.0,82839.0,0.1207378]
[1741549723673,0.3608,82841.0,82840.0,0.1808363]
[1741549723873,0.01186609,82856.0,82840.0,0.1221]
[1741549724179,0.1810825,82854.0,82853.0,0.1207109]
[1741549725074,0.1207174,82853.0,82852.0,0.0588]
[1741549725274,0.1810992,82844.0,82843.0,0.0603654]
[1741549725573,0.1207319,82843.0,82842.0,0.0586]
[1741549725777,0.1207319,82843.0,82840.0,0.0001811]
[1741549725778,0.1207349,82841.0,82840.0,0.0001811]
[1741549725964,0.1811355,82829.0,82828.0,0.1207462]
[1741549726165,0.1811124,82837.0,82836.0,0.1207421]
[1741549726475,0.0603704,82837.0,82836.0,0.1207421]
[1741549726676,0.1182704,82837.0,82836.0,0.1207421]
[1741549726872,0.1802704,82837.0,82836.0,0.1207421]
[1741549728077,0.1182704,82837.0,82836.0,0.1207421]
[1741549728281,0.0579,82837.0,82836.0,0.1207421]
[1741549728483,0.10092,82838.0,82836.0,0.1207421]
[1741549728484,0.2216592,82838.0,82837.0,0.1207407]
[1741549728671,0.10092,82838.0,82837.0,0.1807407]
[1741549728870,0.2216592,82838.0,82837.0,0.1807407]
[1741549729074,0.2216592,82838.0,82837.0,0.5415407]
[1741549729487,0.10092,82838.0,82837.0,0.5415407]
[1741549729982,0.2216592,82838.0,82837.0,0.5415407]
[1741549730380,0.1207392,82838.0,82837.0,0.5415407]
[1741549730985,0.1207369,82840.0,82839.0,0.1207363]
[1741549731196,0.0001811,82845.0,82837.0,0.36188]
[1741549731374,0.0001811,82845.0,82844.0,0.4815305]
[1741549732889,0.0001811,82845.0,82844.0,0.49360298]
[1741549735680,1e-07,82845.0,82844.0,0.49360298]
[1741549736680,1e-07,82845.0,82844.0,0.64360298]
[1741549737288,0.0594,82865.0,82844.0,0.64360298]
[1741549737289,0.0602,82863.0,82862.0,0.1207043]
[1741549737790,0.2374028,82863.0,82862.0,0.1207043]
[1741549738776,0.0603501,82865.0,82862.0,0.1207043]
[1741549738981,0.1225125,82864.0,82863.0,0.1811028]
[1741549740784,0.35957214,82870.0,82863.0,0.0604]
[1741549740989,0.2413997,82867.0,82866.0,0.1810419]
[1741549741389,0.35957214,82870.0,82868.0,0.1206941]
[1741549741390,0.120695,82869.0,82868.0,0.1206941]
[1741549741987,0.240995,82869.0,82868.0,0.1206941]
[1741549742492,0.1207043,82862.0,82861.0,0.39595867]
[1741549742690,0.4815043,82862.0,82861.0,0.21490657]
[1741549743293,0.4815043,82862.0,82860.0,0.1207069]
[1741549743294,0.1207072,82861.0,82860.0,0.1207069]
[1741549743596,0.1207072,82860.0,82859.0,0.33561517]
[1741549743797,0.21882,82861.0,82860.0,0.1207072]
[1741549743992,0.16052,82861.0,82860.0,0.1207072]
[1741549744196,0.10001609,82861.0,82860.0,0.1207072]
[1741549744386,0.10001609,82861.0,82860.0,0.1823072]
[1741549746396,0.1177517,82863.0,82862.0,0.1207043]
[1741549747390,0.1177517,82863.0,82855.0,0.3608]
[1741549747391,0.1810687,82858.0,82857.0,0.1207113]
[1741549747787,0.2055687,82858.0,82857.0,0.1207113]
[1741549748289,0.0603521,82862.0,82861.0,0.1207057]
[1741549748686,0.3853,82862.0,82860.0,0.0585]
[1741549748884,0.1207057,82861.0,82860.0,0.1207057]
[1741549749093,0.4815057,82861.0,82860.0,0.1207057]
[1741549749484,0.1207072,82860.0,82859.0,0.0585]
[1741549749685,0.1207072,82860.0,82859.0,0.1792086]
[1741549750190,0.1452072,82860.0,82859.0,0.1792086]
[1741549750589,0.1207072,82860.0,82859.0,0.1792086]
[1741549750991,0.1452072,82860.0,82859.0,0.1792086]
[1741549751498,0.1452072,82860.0,82859.0,0.0585]
[1741549751687,0.1452072,82860.0,82859.0,0.1792086]
[1741549753399,0.3608,82861.0,82859.0,0.1792086]
[1741549753592,0.3608,82861.0,82860.0,0.1207072]
[1741549753788,0.42560778,82870.0,82860.0,0.1207072]
[1741549753990,0.36025214,82870.0,82869.0,0.1206941]
[1741549754194,0.10064,82880.0,82870.0,0.1206926]
[1741549754393,0.06034,82879.0,82870.0,0.1777926]
[1741549754588,0.06034,82879.0,82870.0,0.2361926]
[1741549754787,0.0603405,82878.0,82870.0,0.2361926]
[1741549755103,0.10064,82880.0,82870.0,0.2361926]
[1741549755394,0.0603398,82879.0,82870.0,0.2361926]
[1741549755702,0.10064,82887.0,82870.0,0.2361926]
[1741549755899,0.1206786,82880.0,82870.0,0.2361926]
[1741549756200,0.21272,82882.0,82870.0,0.2361926]
[1741549756391,0.1206842,82876.0,82870.0,0.2361926]
[1741549756593,0.12068,82879.0,82870.0,0.2361926]
[1741549756894,0.21272,82882.0,82870.0,0.80060681]
[1741549757096,0.1206799,82879.0,82870.0,0.80060681]
[1741549757398,0.1206788,82880.0,82870.0,0.80060681]
[1741549757801,0.1206799,82879.0,82870.0,0.80060681]
[1741549758002,0.1206886,82873.0,82870.0,0.66752985]
[1741549758196,0.3836478,82871.0,82870.0,8e-08]
[1741549758497,0.1207276,82846.0,82845.0,0.50274323]
[1741549758700,0.2213276,82846.0,82845.0,0.50274323]
[1741549758901,0.2213276,82846.0,82845.0,0.62347223]
[1741549759106,0.3058276,82846.0,82845.0,0.50274323]
[1741549759293,0.1606,82846.0,82845.0,0.62347223]
[1741549759498,0.1006,82846.0,82845.0,0.62347223]
[1741549759690,0.06,82852.0,82845.0,0.62347223]
[1741549759691,0.06,82852.0,82851.0,0.1207203]
[1741549759896,0.06,82852.0,82851.0,0.4815203]
[1741549760307,0.06,82852.0,82850.0,0.0595]
[1741549760308,0.1207203,82851.0,82850.0,0.0595]
[1741549761707,0.1207203,82851.0,82850.0,0.1802217]
[1741549762394,0.0001811,82854.0,82853.0,0.1207174]
[1741549762802,0.0001811,82854.0,82853.0,0.1796174]
[1741549763202,0.00181136,82864.0,82863.0,0.1207028]
[1741549763398,0.02283713,82879.0,82878.0,0.120681]
[1741549763698,0.13218824,82879.0,82878.0,0.120681]
[1741549764403,0.1206795,82879.0,82878.0,0.120681]
[1741549764603,0.1206795,82879.0,82878.0,0.179581]
[1741549765099,0.0603386,82881.0,82880.0,0.120678]
[1741549765295,0.120674,82883.0,82882.0,0.1810093]
[1741549765503,0.120674,82883.0,82882.0,0.0603371]
[1741549769807,0.120678,82881.0,82880.0,0.120677]
[1741549770197,0.1206912,82871.0,82861.0,0.0603524]
[1741549770396,0.4814912,82871.0,82857.0,0.0607]
[1741549770596,0.4814912,82871.0,82858.0,0.01199671]
[1741549770902,0.1206907,82872.0,82871.0,0.1206912]
[1741549771093,0.1206873,82874.0,82873.0,0.1206882]
[1741549775108,0.0603416,82877.0,82876.0,0.1206839]
[1741549776505,0.1206897,82872.0,82871.0,0.3608]
[1741549776702,0.1206897,82872.0,82871.0,0.1206912]
[1741549777100,0.4799447,82873.0,82871.0,0.1206912]
[1741549777101,0.36144,82873.0,82871.0,0.1206912]
[1741549777300,0.3608,82873.0,82872.0,0.1206897]
[1741549777598,0.01150874,82880.0,82879.0,0.1206795]
[1741549777805,0.1206769,82881.0,82879.0,0.1206795]
[1741549778108,0.1206769,82881.0,82880.0,0.179278]
[1741549778508,0.1206769,82881.0,82880.0,0.11133565]
[1741549779305,0.1206769,82881.0,82878.0,0.0603401]
[1741549779504,0.1206795,82879.0,82878.0,0.0603401]
[1741549780906,0.1762795,82879.0,82878.0,0.0603401]
[1741549781308,0.1206795,82879.0,82878.0,0.0603401]
[1741549782517,0.12076215,82879.0,82878.0,0.0603401]
[1741549784505,0.12076215,82879.0,82878.0,0.1167401]
[1741549785918,8.265e-05,82879.0,82878.0,0.1167401]
[1741549789416,0.00018099,82887.0,82886.0,0.1206693]
[1741549789717,0.01144376,82898.0,82886.0,0.05273567]
[1741549789919,0.01144376,82898.0,82897.0,0.1206533]
[1741549790220,0.2206505,82900.0,82899.0,0.1206504]
[1741549790804,0.1,82900.0,82899.0,0.1819504]
[1741549791016,0.1,82900.0,82899.0,0.5427504]
[1741549791412,0.1,82900.0,82899.0,0.55487073]
[1741549792917,0.1,82900.0,82899.0,0.61197073]
[1741549795917,0.2206489,82900.0,82899.0,0.61197073]
[1741549797718,0.2206489,82900.0,82899.0,0.25117073]
[1741549797916,0.2206489,82900.0,82899.0,0.1184]
[1741549798120,0.1809901,82894.0,82893.0,0.1809792]
[1741549798315,0.1809901,82894.0,82893.0,0.0603274]
[1741549798511,0.1206591,82893.0,82892.0,0.1177]
[1741549798713,0.5925591,82893.0,82892.0,0.1177]
[1741549798915,0.1206606,82892.0,82891.0,0.00018099]
[1741549799215,0.2211406,82892.0,82891.0,0.00018099]
[1741549799422,0.3322406,82892.0,82891.0,0.00018099]
[1741549799712,0.3322406,82892.0,82891.0,0.05968099]
[1741549800515,0.3322406,82892.0,82891.0,0.00018099]
[1741549800713,0.97335853,82892.0,82865.0,0.37317272]
[1741549800907,0.97335853,82892.0,82824.0,0.2177]
[1741549800908,0.3608,82866.0,82846.0,0.0603631]
[1741549801110,0.1207247,82848.0,82847.0,0.0578]
[1741549801410,0.2212047,82848.0,82847.0,0.1138]
[1741549801606,0.1207378,82839.0,82838.0,0.21780924]
[1741549801814,0.4815378,82839.0,82838.0,0.21780924]
[1741549802519,0.49349789,82839.0,82838.0,0.21672924]
[1741549803115,0.1207378,82839.0,82838.0,0.33746844]
[1741549803714,0.2212178,82839.0,82838.0,0.21672924]
[1741549803915,0.1207378,82839.0,82838.0,0.1795392]
[1741549804117,0.2814178,82839.0,82838.0,0.1795392]
[1741549804519,0.5417378,82839.0,82838.0,0.1795392]
[1741549804926,0.6422578,82839.0,82838.0,0.1795392]
[1741549805117,0.6422178,82839.0,82838.0,0.0588]
[1741549805319,0.52148,82839.0,82837.0,0.0578]
[1741549805618,0.1787392,82838.0,82837.0,0.0578]
[1741549806017,0.2389392,82838.0,82837.0,0.0578]
[1741549806724,0.120748,82832.0,82831.0,0.0608]
[1741549806920,0.481548,82832.0,82831.0,0.1216]
[1741549807116,0.1207494,82831.0,82828.0,0.00181091]
[1741549807316,0.2388494,82831.0,82830.0,9.801e-05]
[1741549808424,0.25121635,82831.0,82830.0,9.801e-05]
[1741549809217,0.10052,82831.0,82830.0,0.12084891]
[1741549809419,0.8006083,82832.0,82831.0,0.1207494]
[1741549809621,0.7999683,82832.0,82831.0,0.1771494]
[1741549809925,0.81192233,82832.0,82831.0,0.0564]
[1741549810227,0.1207494,82831.0,82830.0,9.801e-05]
[1741549810520,0.1757494,82831.0,82830.0,9.801e-05]
[1741549810727,0.2338494,82831.0,82830.0,9.801e-05]
[1741549811724,0.2338494,82831.0,82830.0,0.12084891]
[1741549812316,0.10052,82831.0,82830.0,0.12084891]
[1741549812623,0.700088,82832.0,82831.0,0.1207494]
[1741549812825,0.700088,82832.0,82831.0,0.2349494]
[1741549812826,0.2179,82832.0,82831.0,0.2349494]
[1741549813219,0.338648,82832.0,82831.0,0.2349494]
[1741549813418,0.338648,82832.0,82831.0,0.24737165]
[1741549814315,0.2179,82832.0,82831.0,0.24737165]
[1741549814923,0.338648,82832.0,82831.0,0.2349494]
[1741549815123,0.699448,82832.0,82831.0,0.2349494]
[1741549816327,0.120748,82832.0,82831.0,0.2349494]
[1741549817122,0.0603719,82835.0,82831.0,0.1142]
[1741549817325,0.1207457,82834.0,82833.0,0.1207451]
[1741549817524,0.1207457,82834.0,82833.0,0.2392451]
[1741549820022,0.1207457,82834.0,82833.0,0.1185]
[1741549821016,0.1207457,82834.0,82830.0,9.801e-05]
[1741549821017,0.1207494,82831.0,82830.0,9.801e-05]
[1741549821235,0.1207494,82831.0,82821.0,0.055]
[1741549821236,0.1207626,82822.0,82821.0,0.055]
[1741549821423,0.5820426,82822.0,82821.0,0.055]
[1741549821629,0.2212426,82822.0,82821.0,0.055]
[1741549822024,0.3357426,82822.0,82821.0,0.055]
[1741549822627,0.34815772,82822.0,82815.0,0.0578]
[1741549822820,0.34815772,82822.0,82813.0,0.00018111]
[1741549822821,0.1207742,82814.0,82813.0,0.00018111]
[1741549823836,0.2335742,82814.0,82813.0,0.00018111]
[1741549824742,0.1207946,82800.0,82799.0,0.0589]
[1741549825032,0.9428746,82800.0,82799.0,0.0589]
[1741549825724,0.1208063,82792.0,82769.0,0.00898775]
[1741549825929,0.4816063,82792.0,82791.0,0.00187049]
[1741549826736,0.85470255,82792.0,82791.0,0.00187049]
[1741549827033,0.95179625,82792.0,82759.0,0.3608]
[1741549827236,0.4816399,82769.0,82763.0,0.01227925]
[1741549827428,0.3608,82769.0,82761.0,0.1208511]
[1741549827737,0.1208501,82762.0,82761.0,0.2417015]
[1741549828037,0.0604256,82762.0,82759.0,0.3608]
[1741549828222,0.0604256,82762.0,82751.0,0.00181257]
[1741549828223,0.1812962,82754.0,82753.0,0.1208627]
[1741549828723,0.1208632,82753.0,82752.0,0.0517]
[1741549829436,0.1208632,82753.0,82752.0,0.1725647]
[1741549829834,0.4816632,82753.0,82752.0,0.1052]
[1741549830032,0.5355632,82753.0,82752.0,0.0517]
[1741549830337,0.5821832,82753.0,82752.0,0.2260647]
[1741549830734,0.5821832,82753.0,82752.0,0.1052]
[1741549830936,0.1208647,82752.0,82751.0,0.00181257]
[1741549831135,0.1747647,82752.0,82751.0,0.00181257]
[1741549831440,0.36144,82753.0,82751.0,0.00181257]
[1741549831625,0.3608,82753.0,82752.0,0.2287647]
[1741549832335,0.10052,82755.0,82754.0,0.1208618]
[1741549832534,0.2179,82766.0,82765.0,0.1208457]
[1741549832734,0.00018123,82770.0,82769.0,0.1208399]
[1741549833637,0.00018123,82770.0,82769.0,0.2283399]
[1741549834332,0.12101963,82770.0,82769.0,0.2283399]
[1741549834531,0.00018123,82770.0,82769.0,0.2283399]
[1741549834834,0.00018123,82770.0,82769.0,0.24077525]
[1741549837027,0.00018123,82770.0,82769.0,0.1075]
[1741549837231,0.48181963,82770.0,82769.0,0.1075]
[1741549838340,0.48181963,82770.0,82769.0,0.2283399]
[1741549838734,0.12101963,82770.0,82769.0,0.2283399]
[1741549840436,0.00018123,82770.0,82769.0,0.2283399]
[1741549840941,0.12101963,82770.0,82769.0,0.2283399]
[1741549842740,0.1208384,82770.0,82769.0,0.2283399]
[1741549843435,0.0533,82771.0,82769.0,0.2283399]
[1741549843632,0.1208359,82772.0,82771.0,0.1208355]
[1741549843933,0.3608,82777.0,82770.0,0.4212185]
[1741549844128,0.3608,82777.0,82776.0,0.1208297]
[1741549844331,0.4816282,82777.0,82776.0,0.1208297]
[1741549845433,0.00018123,82778.0,82776.0,0.1208297]
[1741549845641,0.00018123,82778.0,82777.0,0.4816282]
[1741549846439,0.01085481,82793.0,82792.0,0.1208063]
[1741549846741,0.01085481,82793.0,82792.0,0.13300054]
[1741549846742,0.00181265,82793.0,82792.0,0.13300054]
[1741549847837,0.12261755,82793.0,82792.0,0.13300054]
[1741549848042,0.00181265,82793.0,82792.0,0.13300054]
[1741549852440,0.12261755,82793.0,82792.0,0.13300054]
[1741549852738,0.00181265,82793.0,82792.0,0.13300054]
[1741549852934,0.10044,82797.0,82784.0,0.00018123]
[1741549853139,0.1208165,82785.0,82784.0,0.12099503]
[1741549853435,0.1208146,82787.0,82786.0,0.1208136]
[1741549853636,0.1208126,82788.0,82787.0,0.1208122]
[1741549854048,0.1742126,82788.0,82787.0,0.1208122]
[1741549856137,0.1208136,82787.0,82786.0,0.0569]
[1741549856340,0.1728136,82787.0,82786.0,0.1777151]
[1741549858046,0.17274422,82787.0,82786.0,0.1777151]
[1741549858243,0.052,82787.0,82786.0,0.1777151]
[1741549858548,0.1742122,82788.0,82787.0,0.1208136]
[1741549858757,0.1742122,82788.0,82787.0,0.2290136]
[1741549859841,0.3608,82806.0,82797.0,0.120799]
[1741549860034,0.01143162,82798.0,82797.0,0.120799]
[1741549860636,0.1207976,82798.0,82797.0,0.231799]
[1741549860841,0.1207976,82798.0,82797.0,0.111]
[1741549861049,0.1207976,82798.0,82797.0,0.231799]
[1741549861240,0.1752976,82798.0,82797.0,0.231799]
[1741549861746,0.1752976,82798.0,82797.0,0.175699]
[1741549862046,0.1752976,82798.0,82797.0,0.0549]
[1741549862348,0.2323976,82798.0,82797.0,0.175699]
[1741549862647,0.2323976,82798.0,82797.0,0.10768446]
[1741549863349,0.2323976,82798.0,82797.0,0.16028446]
[1741549863648,0.1116,82798.0,82797.0,0.16028446]
[1741549863848,0.2323976,82798.0,82797.0,0.16028446]
[1741549864239,0.1116,82798.0,82797.0,0.16028446]
[1741549864443,0.1004,82800.0,82799.0,0.1207961]
[1741549864749,0.3281946,82800.0,82799.0,0.1207961]
[1741549866242,0.2074,82800.0,82799.0,0.1755961]
[1741549866452,0.2074,82800.0,82799.0,0.18770892]
[1741549866453,0.1004,82800.0,82799.0,0.18770892]
[1741549866839,0.2211946,82800.0,82799.0,0.18770892]
[1741549868349,0.2211946,82800.0,82799.0,0.1755961]
[1741549868550,0.2743946,82800.0,82799.0,0.1755961]
[1741549869653,0.2743946,82800.0,82799.0,0.18766802]
[1741549870847,0.01143162,82805.0,82804.0,0.1207888]
[1741549871152,0.1115,82818.0,82803.0,0.0516]
[1741549871354,0.1207615,82823.0,82813.0,0.1207757]
[1741549871549,0.0544,82822.0,82813.0,0.1207757]
[1741549871851,0.0544,82822.0,82813.0,0.2294757]
[1741549872053,0.07836698,82826.0,82813.0,0.2294757]
[1741549872054,0.01163419,82826.0,82825.0,0.1207582]
[1741549872355,0.00911126,82830.0,82829.0,0.1207524]
[1741549872551,0.00018112,82834.0,82827.0,0.060377]
[1741549872853,0.00018112,82834.0,82833.0,0.1207465]
[1741549873853,0.00018112,82834.0,82833.0,0.2294465]
[1741549874246,2e-08,82834.0,82833.0,0.2294465]
[1741549874446,0.12994584,82849.0,82848.0,0.1207247]
[1741549874849,0.25066904,82849.0,82848.0,0.1207247]
[1741549875348,0.25066904,82849.0,82848.0,0.2279247]
[1741549876354,0.0603658,82844.0,82833.0,0.1207456]
[1741549876556,0.4815349,82841.0,82834.0,0.0525]
[1741549876748,0.1207349,82841.0,82839.0,0.1207364]
[1741549877056,0.4815349,82841.0,82839.0,0.1207364]
[1741549877257,0.4815349,82841.0,82840.0,0.12091742]
[1741549877453,0.1081,82843.0,82840.0,0.05718112]
[1741549877649,0.2288321,82843.0,82842.0,0.1207334]
[1741549877953,0.1207349,82841.0,82840.0,0.00018112]
[1741549878159,0.4815349,82841.0,82840.0,0.00018112]
[1741549878356,0.4815349,82841.0,82840.0,0.12091742]
[1741549879144,0.1207349,82841.0,82840.0,0.23201742]
[1741549879349,0.1081,82843.0,82842.0,0.1207334]
[1741549879652,0.0521,82843.0,82842.0,0.1207334]
[1741549880450,0.1728319,82843.0,82842.0,0.1207334]
[1741549880959,0.0521,82843.0,82842.0,0.1207334]
[1741549881164,0.1728319,82843.0,82842.0,0.1207334]
[1741549881654,0.1207349,82841.0,82840.0,0.11128112]
[1741549881853,0.1207349,82841.0,82825.0,0.00181099]
[1741549881854,0.1207567,82826.0,82825.0,0.00181099]
[1741549882258,0.0603775,82828.0,82825.0,0.12256919]
[1741549882259,0.3608,82827.0,82825.0,0.12256919]
[1741549882450,0.1207526,82829.0,82826.0,0.1811344]
[1741549882651,0.1207526,82829.0,82825.0,0.00181099]
[1741549882652,0.1207553,82827.0,82825.0,0.00181099]
[1741549882961,0.1207567,82826.0,82825.0,0.00181099]
[1741549883258,0.9121767,82826.0,82825.0,0.00181099]
[1741549883458,0.9121767,82826.0,82825.0,0.00117088]
[1741549883867,0.9676767,82826.0,82825.0,0.00117088]
[1741549884160,1.0197767,82826.0,82825.0,0.00117088]
[1741549884358,1.0197767,82826.0,82818.0,0.00018112]
[1741549884359,0.1207669,82819.0,82818.0,0.00018112]
[1741549884559,0.5818069,82819.0,82818.0,0.00018112]
[1741549885168,0.6894069,82819.0,82818.0,0.00018112]
[1741549887454,0.6894069,82819.0,82818.0,0.12094952]
[1741549887966,0.6894069,82819.0,82818.0,0.00018112]
[1741549888162,0.56864,82819.0,82818.0,0.00018112]
[1741549888465,0.5891669,82819.0,82818.0,0.00018112]
[1741549888868,0.5891669,82819.0,82818.0,0.12094952]
[1741549889371,0.5891669,82819.0,82818.0,0.00018112]
[1741549889757,0.8070669,82819.0,82818.0,2e-08]
[1741549889957,0.1207961,82799.0,82790.0,0.1208087]
[1741549890164,0.2209961,82799.0,82798.0,0.1226091]
[1741549891264,0.2209961,82799.0,82798.0,0.2344091]
[1741549891667,0.1002,82799.0,82798.0,0.2344091]
[1741549892369,0.2209961,82799.0,82798.0,0.2344091]
[1741549896472,0.2209961,82799.0,82798.0,0.2354091]
[1741549896972,0.2209961,82799.0,82798.0,0.2344091]
[1741549897473,0.2209961,82799.0,82798.0,0.0018115]
[1741549897867,0.5817961,82799.0,82798.0,0.0018115]
[1741549898473,0.5817961,82799.0,82798.0,0.1226091]
[1741549898670,0.5817961,82799.0,82798.0,0.0018115]
[1741549899269,0.5817961,82799.0,82798.0,0.0609115]
[1741549900479,0.5837961,82799.0,82798.0,0.1817091]
[1741549900778,0.5837961,82799.0,82798.0,0.0609115]
[1741549900980,0.5847961,82799.0,82798.0,0.0018115]
[1741549902582,0.5827961,82799.0,82798.0,0.1226091]
[1741549902978,0.5827961,82799.0,82798.0,0.1127115]
[1741549903580,0.5827961,82799.0,82798.0,0.2335091]
[1741549903783,0.5837961,82799.0,82798.0,0.2335091]
[1741549904179,0.5817961,82799.0,82798.0,0.1127115]
[1741549904382,0.5817961,82799.0,82798.0,0.2335091]
[1741549905994,0.5827961,82799.0,82798.0,0.1127115]
[1741549906386,0.5827961,82799.0,82798.0,0.2335091]
[1741549906888,0.5827961,82799.0,82798.0,0.1127115]
[1741549907094,0.5817961,82799.0,82798.0,0.1127115]
[1741549907387,0.5827961,82799.0,82798.0,0.1127115]
[1741549907991,0.5827961,82799.0,82798.0,0.2335091]
[1741549908289,0.2219961,82799.0,82798.0,0.2335091]
[1741549908689,0.10112,82799.0,82798.0,0.2335091]
[1741549909103,0.2219161,82799.0,82798.0,0.2335091]
[1741549910096,0.2209161,82799.0,82798.0,0.2355091]
[1741549911395,0.10012,82799.0,82798.0,0.2355091]
[1741549911593,0.43138,82802.0,82801.0,0.1207932]
[1741549911889,0.4307,82802.0,82801.0,0.1207932]
[1741549912290,0.2128,82802.0,82801.0,0.1207932]
[1741549912490,0.2128,82802.0,82801.0,0.13298521]
[1741549913196,0.2128,82802.0,82801.0,0.13398521]
[1741549913699,0.0603933,82806.0,82801.0,0.01319201]
[1741549913901,0.00018112,82807.0,82805.0,0.1207873]
[1741549914098,0.12096552,82807.0,82806.0,0.2284859]
[1741549915801,0.12196552,82807.0,82806.0,0.2284859]
[1741549916295,0.12296552,82807.0,82806.0,0.2284859]
[1741549916791,0.12196552,82807.0,82806.0,0.2284859]
[1741549916987,0.12296552,82807.0,82806.0,0.2284859]
[1741549919698,0.00218112,82807.0,82806.0,0.2284859]
[1741549923793,0.00118112,82807.0,82806.0,0.2284859]
[1741549924008,0.00118112,82807.0,82806.0,0.2324859]
[1741549924207,0.00018112,82807.0,82806.0,0.2324859]
[1741549924405,0.12096552,82807.0,82806.0,0.1157]
[1741549924702,0.22100552,82807.0,82806.0,0.008]
[1741549924909,0.23293929,82807.0,82806.0,0.008]
[1741549925496,0.23293929,82807.0,82806.0,0.1287859]
[1741549925899,0.23293929,82807.0,82806.0,0.004]
[1741549926104,0.23293929,82807.0,82806.0,0.008]
[1741549926705,0.23293929,82807.0,82806.0,0.004]
[1741549926905,0.1207888,82804.0,82803.0,0.1783891]
[1741549927103,0.4815888,82804.0,82803.0,0.2326891]
[1741549927501,0.4815888,82804.0,82803.0,0.1119]